bitfinex-derivatives/quotes_SOLF0:USTF0_20240815
["timestamp","ask_amount","ask_price","bid_price","bid_amount"]
[1723686665825,3.447,145.02,144.99,26.5775]
[1723686666022,3.49271154,145.02,145.0,0.04368914]
[1723686671833,3.49271154,145.02,145.01,9.27]
[1723686675140,0.04571154,145.02,145.01,9.27]
[1723686675337,0.04571154,145.02,145.0,0.04368914]
[1723686675734,3.4472,145.01,145.0,0.04368914]
[1723686675937,3.4472,145.01,145.0,9.31368914]
[1723686676339,0.04571154,145.02,145.0,9.31368914]
[1723686677039,3.49281154,145.02,145.0,9.31368914]
[1723686682047,3.4472,145.01,145.0,9.31368914]
[1723686682644,3.4472,145.01,145.0,0.04368914]
[1723686682844,7.7872,145.01,145.0,0.04368914]
[1723686683044,17.07392288,145.01,144.93,9.27]
[1723686683244,9.27,144.99,144.93,9.27]
[1723686683651,9.27,144.99,144.93,12.7191]
[1723686683841,6.907,145.01,144.97,9.27]
[1723686684045,6.907,145.01,145.0,9.27]
[1723686684246,6.907,145.08,145.01,3.4472]
[1723686684549,12.77491917,145.09,145.01,3.4472]
[1723686684550,6.907,145.06,145.01,9.27]
[1723686684744,3.4466,145.04,145.01,9.27]
[1723686685051,6.907,145.06,145.01,9.27]
[1723686685254,3.4466,145.04,145.01,9.27]
[1723686685654,3.4466,145.04,145.01,9.3203543]
[1723686687348,6.95713011,145.06,145.01,0.0503543]
[1723686687853,6.95713011,145.06,145.01,9.3203543]
[1723686688759,3.4466,145.04,145.01,9.3203543]
[1723686689646,6.95713011,145.06,145.01,9.3203543]
[1723686689848,9.27,145.04,145.01,0.0503543]
[1723686690050,4.34,145.03,145.01,0.0503543]
[1723686690243,3.4469,145.02,145.01,0.0503543]
[1723686697550,12.7169,145.02,145.01,0.0503543]
[1723686697756,16.177,145.02,144.94,9.27]
[1723686697952,9.27,144.98,144.91,73.84180236]
[1723686698152,6.907,145.02,144.91,73.84180236]
[1723686698153,17.04185742,144.97,144.91,73.84180236]
[1723686698353,3.4488,144.95,144.91,77.29130236]
[1723686699051,0.0494182,144.94,144.92,0.04894245]
[1723686700459,0.0494182,144.94,144.92,3.49824245]
[1723686701958,0.0494182,144.94,144.92,0.04894245]
[1723686702158,3.4983182,144.94,144.92,0.04894245]
[1723686702354,0.0494182,144.94,144.92,0.04894245]
[1723686703353,0.0494182,144.94,144.92,3.49824245]
[1723686704052,0.0494182,144.94,144.92,0.04894245]
[1723686704659,0.0494182,144.94,144.92,3.49824245]
[1723686707276,0.0494182,144.94,144.92,0.04894245]
[1723686709064,3.4491,144.93,144.92,0.04894245]
[1723686709368,0.0494182,144.94,144.92,0.04894245]
[1723686709564,3.4984182,144.94,144.92,0.04894245]
[1723686711069,3.4984182,144.94,144.92,23.22894245]
[1723686712370,0.0494182,144.94,144.92,23.22894245]
[1723686712569,0.0494182,144.94,144.92,26.67824245]
[1723686713071,0.0494182,144.94,144.92,23.22894245]
[1723686715974,0.0494182,144.94,144.92,26.67824245]
[1723686717271,0.0494182,144.94,144.92,23.22894245]
[1723686719883,0.0494182,144.94,144.92,9.31894245]
[1723686721483,3.4983182,144.94,144.92,9.31894245]
[1723686722881,3.4491,144.93,144.92,0.04894245]
[1723686727585,12.7191,144.93,144.92,0.04894245]
[1723686729083,3.4491,144.93,144.92,0.04894245]
[1723686730386,0.0494182,144.94,144.92,0.04894245]
[1723686730801,3.4491,144.93,144.92,0.04894245]
[1723686732290,0.0494182,144.94,144.92,0.04894245]
[1723686732500,0.0494182,144.94,144.93,9.27]
[1723686732797,0.0494182,144.94,144.92,0.04894245]
[1723686734598,0.0494182,144.94,144.93,9.27]
[1723686735700,0.0494182,144.94,144.93,25.96014824]
[1723686737000,0.0494182,144.94,144.93,9.27]
[1723686737500,0.0494182,144.94,144.92,0.04894245]
[1723686738098,9.27,144.93,144.92,0.04894245]
[1723686738298,17.0791,144.93,144.92,0.04894245]
[1723686739902,7.8091,144.93,144.92,0.04894245]
[1723686741694,30.9991,144.93,144.92,0.04894245]
[1723686743403,7.8091,144.93,144.92,0.04894245]
[1723686743599,4.36,144.93,144.92,0.04894245]
[1723686744502,7.8091,144.93,144.92,0.04894245]
[1723686745104,4.36,144.93,144.92,0.04894245]
[1723686745304,0.0494182,144.94,144.92,0.04894245]
[1723686745606,0.0494182,144.94,144.92,23.23894245]
[1723686747315,0.0494182,144.94,144.92,0.04894245]
[1723686749812,3.4983182,144.94,144.92,0.04894245]
[1723686750010,0.0494182,144.94,144.92,0.04894245]
[1723686750407,3.4491,144.93,144.92,0.04894245]
[1723686751310,7.7891,144.93,144.92,0.04894245]
[1723686752410,4.34,144.93,144.92,0.04894245]
[1723686753012,7.7891,144.93,144.92,0.04894245]
[1723686753418,4.34,144.93,144.92,0.04894245]
[1723686754214,0.0494182,144.94,144.92,0.04894245]
[1723686754916,0.0494182,144.94,144.92,3.49814245]
[1723686755311,0.0494182,144.94,144.93,3.4491]
[1723686755908,3.4491,144.93,144.92,0.04894245]
[1723686756112,0.0494182,144.94,144.92,13.29713933]
[1723686756318,0.0494182,144.94,144.92,0.04894245]
[1723686756722,3.4984182,144.94,144.92,0.04894245]
[1723686757621,0.0494182,144.94,144.92,0.04894245]
[1723686757823,0.0494182,144.94,144.92,3.49814245]
[1723686758123,0.0494182,144.94,144.93,13.2482659]
[1723686759625,0.0494182,144.94,144.93,13.24630609]
[1723686760717,0.0494182,144.94,144.92,3.49814245]
[1723686760917,0.0494182,144.94,144.93,13.24733368]
[1723686763419,0.0494182,144.94,144.93,13.24991894]
[1723686764725,0.0494182,144.94,144.93,16.69901894]
[1723686766517,0.0494182,144.94,144.93,13.24991894]
[1723686767429,0.0494182,144.94,144.92,3.49814245]
[1723686767619,0.0494182,144.94,144.93,13.25664547]
[1723686769826,0.0494182,144.94,144.93,22.52664547]
[1723686771230,0.0494182,144.94,144.93,22.52620956]
[1723686772531,0.0494182,144.94,144.93,25.97530956]
[1723686772832,4.34,144.99,144.93,22.52620956]
[1723686773035,4.34,145.02,144.98,9.27]
[1723686773337,3.4472,145.01,144.99,13.25620956]
[1723686773528,3.4472,145.01,145.0,13.25620956]
[1723686775332,3.4472,145.01,145.0,13.24757256]
[1723686776830,7.83546151,145.02,145.0,13.24757256]
[1723686777037,7.83546151,145.02,144.99,0.04393464]
[1723686777237,7.83546151,145.02,145.0,13.25607649]
[1723686777427,7.83546151,145.02,144.99,0.04393464]
[1723686777628,3.4472,145.01,145.0,13.25646772]
[1723686777834,4.38846151,145.02,144.99,0.04393464]
[1723686778232,3.4472,145.01,144.99,0.04393464]
[1723686779138,3.4474,145.0,144.99,0.04393464]
[1723686780139,3.4473,145.01,144.99,13.30274358]
[1723686780340,3.4473,145.01,144.99,0.04393464]
[1723686780533,7.83546151,145.02,144.99,0.04393464]
[1723686781938,4.38846151,145.02,144.99,3.49153464]
[1723686782138,0.04846151,145.02,144.99,3.49153464]
[1723686782331,0.04846151,145.02,144.99,26.68153464]
[1723686782532,0.04846151,145.02,145.0,13.25335251]
[1723686782735,0.04846151,145.02,144.99,26.68153464]
[1723686782938,0.04846151,145.02,145.0,13.25250665]
[1723686783138,3.49536151,145.02,144.99,23.23393464]
[1723686783339,3.49536151,145.02,145.0,13.25416481]
[1723686783539,3.49536151,145.02,144.99,23.23393464]
[1723686783739,3.49536151,145.02,145.0,13.25357431]
[1723686783940,3.49536151,145.02,144.99,23.23393464]
[1723686784133,3.49536151,145.02,145.0,13.2535743]
[1723686784340,3.49536151,145.02,144.99,23.23393464]
[1723686785039,3.53233698,145.01,144.99,0.04393464]
[1723686785438,3.4474,145.0,144.99,0.04393464]
[1723686794049,3.4484,144.96,144.93,1.2881]
[1723686794251,3.4484,144.96,144.91,23.19]
[1723686794454,3.4484,144.96,144.92,16.72533721]
[1723686794649,3.4484,144.96,144.93,13.27613721]
[1723686794848,3.4484,144.96,144.92,3.4492]
[1723686795049,3.4484,144.96,144.93,13.27628875]
[1723686795247,0.04729015,144.95,144.93,0.04374396]
[1723686795444,3.49599015,144.95,144.93,0.04374396]
[1723686796153,0.04729015,144.95,144.93,0.04374396]
[1723686796541,3.4488,144.94,144.93,0.04374396]
[1723686796748,0.04729015,144.95,144.93,0.04374396]
[1723686799453,0.04729015,144.95,144.93,9.31374396]
[1723686800353,3.49589015,144.95,144.93,9.31374396]
[1723686801749,0.04729015,144.95,144.93,9.31374396]
[1723686801958,0.04729015,144.95,144.93,12.76284396]
[1723686802145,0.04729015,144.95,144.94,13.2758082]
[1723686803050,7.7876,145.0,144.96,3.4483]
[1723686803357,7.7876,145.0,144.96,12.7183]
[1723686803747,3.4477,144.99,144.96,12.7183]
[1723686803945,3.4477,144.99,144.97,13.27076945]
[1723686804154,3.50041462,144.99,144.96,12.76878081]
[1723686804351,3.50041462,144.99,144.97,13.27075024]
[1723686804546,3.50041462,144.99,144.96,12.76878081]
[1723686804754,0.05271462,144.99,144.97,16.71885025]
[1723686804950,0.05271462,144.99,144.98,9.27]
[1723686805153,0.05271462,144.99,144.98,22.53719324]
[1723686806056,0.05271462,144.99,144.98,9.27]
[1723686806257,0.05271462,144.99,144.98,22.53782113]
[1723686808556,0.05271462,144.99,144.98,25.98572113]
[1723686809051,0.05271462,144.99,144.98,22.53782113]
[1723686809757,0.05271462,144.99,144.98,22.53594913]
[1723686810560,0.05271462,144.99,144.98,25.98384913]
[1723686813756,0.05271462,144.99,144.98,12.7179]
[1723686813961,0.05271462,144.99,144.98,25.98431181]
[1723686814656,0.05271462,144.99,144.98,25.98473039]
[1723686815759,0.05271462,144.99,144.98,22.53683039]
[1723686815962,0.05271462,144.99,144.98,13.26683039]
[1723686816466,3.4479,144.98,144.96,0.05048081]
[1723686816669,3.4479,144.98,144.97,13.26995269]
[1723686817462,3.50051462,144.99,144.97,13.26995269]
[1723686817654,3.50051462,144.99,144.98,13.26995269]
[1723686817859,3.50051462,144.99,144.96,0.05048081]
[1723686818161,3.50051462,144.99,144.97,13.270005]
[1723686818358,3.50051462,144.99,144.96,0.05048081]
[1723686818564,3.50051462,144.99,144.97,13.26973697]
[1723686818764,3.50051462,144.99,144.96,0.05048081]
[1723686818967,3.50051462,144.99,144.97,13.26988005]
[1723686819165,3.50051462,144.99,144.96,0.05048081]
[1723686819363,3.50051462,144.99,144.97,13.26999413]
[1723686819564,3.50051462,144.99,144.96,0.05048081]
[1723686819764,3.50051462,144.99,144.97,13.26999411]
[1723686819968,3.50051462,144.99,144.98,13.26999411]
[1723686820269,3.50051462,144.99,144.96,0.05048081]
[1723686820457,3.50051462,144.99,144.97,13.26999411]
[1723686820664,3.50051462,144.99,144.98,13.26999411]
[1723686821665,3.50051462,144.99,144.96,3.49888081]
[1723686821865,3.50051462,144.99,144.97,13.27074054]
[1723686822064,3.50051462,144.99,144.96,3.49888081]
[1723686822265,3.50051462,144.99,144.97,13.27016035]
[1723686822465,3.50051462,144.99,144.96,3.49888081]
[1723686822662,3.50051462,144.99,144.97,13.26926615]
[1723686822965,3.50051462,144.99,144.96,0.05048081]
[1723686823166,3.50051462,144.99,144.97,13.27017111]
[1723686823366,3.50051462,144.99,144.96,0.05048081]
[1723686823577,3.50051462,144.99,144.97,13.27018223]
[1723686823867,3.50051462,144.99,144.96,0.05048081]
[1723686824164,3.50051462,144.99,144.97,13.27166393]
[1723686824364,3.50051462,144.99,144.96,3.49888081]
[1723686824558,3.50051462,144.99,144.97,13.27096338]
[1723686824759,3.50051462,144.99,144.98,13.27096338]
[1723686825269,3.50051462,144.99,144.98,22.54096338]
[1723686825270,0.05271462,144.99,144.98,22.54096338]
[1723686825769,0.05271462,144.99,144.98,9.27]
[1723686825969,0.05271462,144.99,144.98,22.53988214]
[1723686829865,0.05271462,144.99,144.98,9.27]
[1723686830176,0.05271462,144.99,144.98,22.53234715]
[1723686831868,0.05271462,144.99,144.98,13.26234715]
[1723686833271,0.05271462,144.99,144.97,12.7181]
[1723686833475,0.05271462,144.99,144.98,13.26823944]
[1723686837179,0.05271462,144.99,144.98,13.2657024]
[1723686840488,9.27,145.06,144.98,22.5357024]
[1723686840675,13.61,145.06,145.01,9.27]
[1723686840879,13.61,145.06,145.02,13.25774404]
[1723686841079,3.4467,145.03,145.0,9.27]
[1723686841282,13.61,145.06,145.01,13.2574009]
[1723686841475,3.4467,145.03,145.02,13.301778]
[1723686841782,0.05211515,145.05,145.02,13.301778]
[1723686842084,3.49851515,145.05,145.03,13.2574009]
[1723686842385,0.05211515,145.05,145.02,0.0443771]
[1723686842685,0.05211515,145.05,145.03,13.25699772]
[1723686842879,3.4467,145.03,145.02,0.0443771]
[1723686843080,3.4467,145.03,145.02,13.30150764]
[1723686843286,3.4467,145.03,145.02,13.30157573]
[1723686843485,0.05211515,145.05,145.02,13.30157573]
[1723686843486,3.4465,145.04,145.02,13.30157573]
[1723686843691,3.4465,145.04,145.03,13.25719863]
[1723686843983,0.05211515,145.05,145.03,13.25719863]
[1723686844188,0.05211515,145.05,145.02,0.0443771]
[1723686844387,0.05211515,145.05,145.03,13.25654349]
[1723686844689,0.05211515,145.05,145.02,0.0443771]
[1723686844885,0.05211515,145.05,145.03,13.25592519]
[1723686845083,0.05211515,145.05,145.02,0.0443771]
[1723686845282,3.49831515,145.05,145.03,13.25367287]
[1723686845585,3.49831515,145.05,145.02,0.0443771]
[1723686845786,3.49831515,145.05,145.03,13.25362839]
[1723686845982,3.49831515,145.05,145.02,0.0443771]
[1723686846193,3.49831515,145.05,145.03,13.25209415]
[1723686846391,3.49831515,145.05,145.02,0.0443771]
[1723686846593,3.49831515,145.05,145.03,13.24873331]
[1723686846798,3.49831515,145.05,145.02,0.0443771]
[1723686846999,3.49831515,145.05,145.03,13.24834047]
[1723686847186,3.49831515,145.05,145.02,0.0443771]
[1723686847495,3.49831515,145.05,145.03,13.24855498]
[1723686847696,3.49831515,145.05,145.02,0.0443771]
[1723686847891,3.49831515,145.05,145.03,13.25314644]
[1723686848194,3.49831515,145.05,145.02,3.4912771]
[1723686848391,3.49831515,145.05,145.03,13.25835772]
[1723686848697,3.49831515,145.05,145.02,3.4912771]
[1723686848890,3.49831515,145.05,145.03,13.25871571]
[1723686849090,3.49831515,145.05,145.02,3.4912771]
[1723686849294,3.49831515,145.05,145.03,13.26010756]
[1723686849594,3.49831515,145.05,145.02,3.4912771]
[1723686849789,3.49831515,145.05,145.03,13.26013574]
[1723686849992,3.49831515,145.05,145.02,0.0443771]
[1723686850190,3.49831515,145.05,145.03,13.25998737]
[1723686850385,3.49831515,145.05,145.02,0.0443771]
[1723686850596,3.49831515,145.05,145.03,13.26344261]
[1723686850793,3.49831515,145.05,145.02,9.3143771]
[1723686850993,3.49831515,145.05,145.02,12.7612771]
[1723686851189,0.05211515,145.05,145.04,9.27]
[1723686851490,0.05211515,145.05,145.04,22.53329881]
[1723686851693,0.05211515,145.05,145.04,25.97979881]
[1723686852600,13.59,145.12,145.05,3.4461]
[1723686852798,3.4455,145.08,145.06,22.52965804]
[1723686852994,3.4455,145.08,145.06,9.27]
[1723686853390,9.27,145.1,145.03,4.7221]
[1723686853588,9.27,145.1,145.04,22.52954212]
[1723686853793,9.27,145.1,145.05,13.25954212]
[1723686853996,9.27,145.1,145.06,13.25954212]
[1723686854200,3.4459,145.07,145.05,0.04520384]
[1723686855593,3.49475609,145.08,145.05,0.04520384]
[1723686856400,3.4458,145.07,145.05,0.04520384]
[1723686856994,3.49475609,145.08,145.05,0.04520384]
[1723686857197,3.49475609,145.08,145.05,9.31520384]
[1723686857594,3.49475609,145.08,145.05,12.76130384]
[1723686858194,0.04915609,145.08,145.06,12.716]
[1723686861002,0.04915609,145.08,145.06,9.27]
[1723686861802,0.04915609,145.08,145.06,12.716]
[1723686862394,0.04915609,145.08,145.07,3.4458]
[1723686864799,0.04915609,145.08,145.06,12.7159]
[1723686866004,0.04915609,145.08,145.05,0.04520384]
[1723686866199,0.04915609,145.08,145.05,9.31520384]
[1723686866705,3.49465609,145.08,145.05,12.76130384]
[1723686867906,0.04915609,145.08,145.05,12.76130384]
[1723686869111,0.04915609,145.08,145.06,12.716]
[1723686870600,0.04915609,145.08,145.07,3.4458]
[1723686873412,0.04915609,145.08,145.07,12.7158]
[1723686878308,0.04915609,145.08,145.07,25.95526803]
[1723686878814,3.4447,145.12,145.09,3.4452]
[1723686879008,4.32,145.15,145.11,9.27]
[1723686879216,46.35,145.12,144.9,225.0]
[1723686879406,5.5663,145.11,144.91,67.25625344]
[1723686879611,5.5663,145.11,144.92,13.24279568]
[1723686879809,9.27,145.05,144.93,13.24279568]
[1723686880114,9.27,145.05,144.98,9.27]
[1723686880115,4.32,145.04,144.98,9.27]
[1723686880317,0.03512982,145.03,145.0,0.04409521]
[1723686880811,0.03512982,145.03,145.01,9.27]
[1723686881017,0.03512982,145.03,145.02,9.27]
[1723686881211,0.03512982,145.03,145.01,9.27]
[1723686881411,0.03512982,145.03,145.02,9.27]
[1723686881715,2.6015,145.1,145.02,9.27]
[1723686881914,2.6015,145.1,145.04,9.27]
[1723686882310,0.03512982,145.04,145.03,9.27]
[1723686883109,4.32,145.07,145.03,9.27]
[1723686883820,3.4457,145.08,145.03,9.27]
[1723686884018,0.03512982,145.05,145.04,9.27]
[1723686895919,226.0,145.15,145.04,13.59]
[1723686896125,4.32,145.14,145.1,9.27]
[1723686896324,3.4445,145.13,145.1,9.27]
[1723686897324,3.4446,145.12,145.1,0.04508653]
[1723686899934,3.4448,145.11,145.1,0.04508653]
[1723686901733,11.856,145.16,145.1,9.31508653]
[1723686901935,9.27,145.19,145.13,9.27]
[1723686902131,4.32,145.18,145.13,9.27]
[1723686902343,4.32,145.18,145.13,12.7142]
[1723686902728,4.32,145.18,145.14,0.05038544]
[1723686902929,3.4435,145.17,145.14,0.05038544]
[1723686904526,3.4436,145.16,145.14,0.05038544]
[1723686907335,3.4439,145.15,145.14,0.05038544]
[1723686908634,9.27,145.15,145.05,5.6014]
[1723686908831,9.27,145.13,145.07,9.27]
[1723686909035,13.59,145.13,145.07,9.27]
[1723686909337,4.32,145.13,145.09,9.27]
[1723686909831,3.4447,145.12,145.09,12.7151]
[1723686910234,3.48883153,145.12,145.1,0.04467633]
[1723686910736,3.4448,145.11,145.1,0.04467633]
[1723686910931,0.04413153,145.12,145.1,0.04467633]
[1723686911332,0.04413153,145.12,145.1,9.31467633]
[1723686913434,0.04413153,145.12,145.1,12.75967633]
[1723686914440,0.04413153,145.12,145.11,3.4448]
[1723686917436,3.4437,145.16,145.13,3.4443]
[1723686917638,3.4437,145.16,145.14,9.27]
[1723686918040,3.4435,145.17,145.14,9.27]
[1723686918246,6.897,145.2,145.16,9.27]
[1723686918539,1.2606,145.21,145.16,9.27]
[1723686918746,3.4431,145.19,145.17,0.04575617]
[1723686918939,1.2606,145.21,145.17,0.04575617]
[1723686919246,1.2606,145.21,145.17,12.75895617]
[1723686919247,10.3395,145.21,145.17,12.75895617]
[1723686919434,6.897,145.21,145.17,12.75895617]
[1723686919639,3.4428,145.2,145.17,9.31575617]
[1723686920444,3.4428,145.2,145.17,0.04575617]
[1723686921445,3.443,145.19,145.17,0.04575617]
[1723686922245,3.4428,145.2,145.17,0.04575617]
[1723686922542,3.4428,145.2,145.17,9.31575617]
[1723686924234,3.4429,145.19,145.17,9.31575617]
[1723686924848,3.4428,145.2,145.17,9.31575617]
[1723686926147,3.4428,145.2,145.17,12.75915617]
[1723686926747,3.4428,145.2,145.17,9.31575617]
[1723686927350,16.167,145.21,145.17,0.04575617]
[1723686927848,3.4431,145.19,145.17,0.04575617]
[1723686929045,3.4427,145.2,145.17,9.31575617]
[1723686930851,3.4427,145.2,145.17,12.75895617]
[1723686932848,16.167,145.21,145.17,0.04575617]
[1723686933352,3.4431,145.19,145.17,0.04575617]
[1723686935150,3.4429,145.2,145.17,9.31575617]
[1723686938154,3.4429,145.2,145.17,12.75915617]
[1723686938958,3.4429,145.2,145.17,9.31575617]
[1723686939164,3.443,145.19,145.17,0.04575617]
[1723686939451,9.27,145.2,145.17,0.04575617]
[1723686939656,3.4431,145.18,145.17,0.04575617]
[1723686944457,3.4439,145.15,145.12,3.4444]
[1723686944762,9.27,145.16,145.11,9.27]
[1723686945057,9.27,145.16,145.09,9.27]
[1723686945258,9.27,145.14,145.09,9.27]
[1723686945460,3.4446,145.12,145.09,9.27]
[1723686945760,4.37155148,145.13,145.1,0.05090892]
[1723686946358,3.4446,145.12,145.1,0.05090892]
[1723686948157,7.81595148,145.13,145.1,0.05090892]
[1723686948358,7.81595148,145.13,145.1,9.32090892]
[1723686949465,3.4446,145.12,145.1,9.32090892]
[1723686950766,7.81595148,145.13,145.1,9.32090892]
[1723686953364,7.81595148,145.13,145.1,12.76590892]
[1723686954171,7.81595148,145.13,145.1,9.32090892]
[1723686954367,3.4446,145.12,145.1,9.32090892]
[1723686954768,3.4446,145.12,145.1,0.05090892]
[1723686956568,4.37155148,145.13,145.1,0.05090892]
[1723686956967,3.4448,145.11,145.1,0.05090892]
[1723686960065,0.05155148,145.13,145.1,0.05090892]
[1723686960269,0.05155148,145.13,145.12,9.27]
[1723686960469,3.49605148,145.13,145.1,9.32090892]
[1723686962671,3.4446,145.12,145.1,9.32090892]
[1723686963887,9.32155148,145.13,145.1,0.05090892]
[1723686964079,12.7148,145.11,145.1,0.05090892]
[1723686966886,3.4448,145.11,145.1,0.05090892]
[1723686969279,12.7148,145.11,145.1,0.05090892]
[1723686969478,4.37155148,145.13,145.1,9.32090892]
[1723686969782,4.37155148,145.13,145.1,12.76580892]
[1723686972883,3.4448,145.11,145.1,0.05090892]
[1723686973085,12.7148,145.11,145.1,0.05090892]
[1723686973991,3.4448,145.11,145.1,0.05090892]
[1723686982584,7.7648,145.11,145.1,0.05090892]
[1723686983997,27.49,145.11,145.03,3.8446]
[1723686984591,3.4459,145.07,145.04,3.4464]
[1723686984904,4.32,145.07,145.03,3.8446]
[1723686985195,4.37212926,145.07,145.04,0.0469094]
[1723686985697,7.81802926,145.07,145.04,3.4932094]
[1723686987392,3.446,145.06,145.04,3.4932094]
[1723686989701,0.05212926,145.07,145.05,3.4462]
[1723686990197,0.05212926,145.07,145.04,0.0469094]
[1723686990796,3.49792926,145.07,145.04,3.4932094]
[1723686991397,0.05212926,145.07,145.05,3.4461]
[1723686992001,0.05212926,145.07,145.04,23.2169094]
[1723686992198,3.49792926,145.07,145.04,26.6632094]
[1723686992797,3.446,145.06,145.04,26.6632094]
[1723686993098,3.446,145.06,145.04,0.0469094]
[1723686993705,3.446,145.06,144.84,225.0]
[1723686993706,23.17,145.06,144.94,66.76289086]
[1723686993904,13.65,145.05,144.99,9.27]
[1723686994202,3.4468,145.03,145.0,3.4472]
[1723686994403,3.4468,145.03,145.01,9.27]
[1723686995399,3.49206325,145.03,145.01,9.32144855]
[1723686995600,0.04526325,145.03,145.01,9.32144855]
[1723686995902,0.04526325,145.03,145.01,0.05144855]
[1723686997203,3.49206325,145.03,145.01,0.05144855]
[1723686997898,3.4469,145.02,145.01,0.05144855]
[1723687001800,0.04526325,145.03,145.01,0.05144855]
[1723687002698,3.49216325,145.03,145.01,0.05144855]
[1723687003897,0.04526325,145.03,145.01,0.05144855]
[1723687004800,3.49206325,145.03,145.01,0.05144855]
[1723687005909,2.69206325,145.03,145.01,0.05144855]
[1723687006208,3.4469,145.02,145.01,0.05144855]
[1723687013614,6.96553782,145.02,145.01,0.05144855]
[1723687016210,4.38,145.02,145.01,0.05144855]
[1723687017411,7.8269,145.02,145.01,0.05144855]
[1723687019316,11.19279342,145.02,145.01,0.05144855]
[1723687019616,7.8269,145.02,145.01,0.05144855]
[1723687021019,11.21796349,145.02,145.01,0.05144855]
[1723687021211,7.8269,145.02,145.01,0.05144855]
[1723687021413,20.53899229,145.02,145.01,0.05144855]
[1723687023315,17.0869,145.02,145.01,0.05144855]
[1723687023523,20.48567309,145.02,145.01,0.05144855]
[1723687025410,17.0869,145.02,145.01,0.05144855]
[1723687025917,20.52084708,145.02,145.01,0.05144855]
[1723687026712,17.0869,145.02,145.01,0.05144855]
[1723687026912,20.55695015,145.02,145.01,0.05144855]
[1723687027815,17.0869,145.02,145.01,0.05144855]
[1723687028424,20.44314865,145.02,145.01,0.05144855]
[1723687030328,17.0469,145.02,145.01,0.05144855]
[1723687030725,50.64,145.02,144.8,7.20078215]
[1723687030930,9.26,144.91,144.85,11.8463]
[1723687031131,9.26,144.87,144.85,2.5863]
[1723687031431,9.26,144.86,144.85,1.2669]
[1723687031628,13.6,144.86,144.81,1.2754]
[1723687031827,9.26,144.85,144.81,1.2754]
[1723687032030,9.26,144.85,144.76,2.5863]
[1723687032222,9.26,144.82,144.76,2.5863]
[1723687032427,12.7123,144.8,144.76,1.2669]
[1723687032629,3.4523,144.8,144.79,0.04854038]
[1723687032926,20.55373304,144.8,144.79,0.04854038]
[1723687033134,13.6,144.8,144.71,2.5914]
[1723687033326,9.26,144.73,144.71,2.5914]
[1723687033927,4.34,144.74,144.71,2.5914]
[1723687034130,4.34,144.73,144.71,2.5914]
[1723687034335,7.7938,144.73,144.67,3.4551]
[1723687034635,31.0138,144.73,144.71,0.04967975]
[1723687034938,27.60537741,144.73,144.71,0.04967975]
[1723687035327,3.4541,144.72,144.71,0.04967975]
[1723687036127,27.60537741,144.73,144.65,1.3138]
[1723687036336,23.22,144.7,144.65,1.3138]
[1723687036529,4.34,144.69,144.65,1.3138]
[1723687037640,3.43754794,144.75,144.66,23.22]
[1723687037930,4.34,144.74,144.66,23.22]
[1723687038137,0.04378602,144.68,144.66,0.05221139]
[1723687038339,10.28230469,144.78,144.67,23.22]
[1723687038541,4.34,144.75,144.66,0.05221139]
[1723687038740,23.22,144.74,144.66,0.05221139]
[1723687038946,23.22,144.74,144.66,23.27221139]
[1723687039237,23.22,144.74,144.66,23.22]
[1723687039640,3.4544,144.71,144.66,26.6754]
[1723687039840,23.22,144.74,144.66,26.6754]
[1723687040243,3.50592154,144.71,144.69,0.04495899]
[1723687040436,0.05142154,144.71,144.69,0.04495899]
[1723687040636,3.4545,144.7,144.69,0.04495899]
[1723687041440,6.95704306,144.7,144.69,0.04495899]
[1723687041642,3.4545,144.7,144.69,0.04495899]
[1723687042235,6.89554644,144.7,144.69,0.04495899]
[1723687043847,4.36,144.7,144.69,0.04495899]
[1723687044047,0.05142154,144.71,144.69,0.04495899]
[1723687044344,0.05142154,144.71,144.69,23.26495899]
[1723687044740,4.36,144.74,144.7,3.4545]
[1723687044936,4.36,144.76,144.69,0.04495899]
[1723687045143,4.36,144.76,144.7,23.22]
[1723687045345,73.4244025,144.8,144.72,23.22]
[1723687045537,4.36,144.77,144.72,23.22]
[1723687045741,4.36,144.77,144.7,3.4545]
[1723687045941,23.22,144.76,144.66,1.2946]
[1723687046143,23.22,144.76,144.67,23.22]
[1723687046538,23.27105628,144.76,144.73,0.049871]
[1723687047350,23.22,144.76,144.67,23.22]